Cogmind - Beta 16.1 @@@ ROGUE MODE // 2026.02.18 @ 16:37:30 Player: Lintence Result: Self-destructed Performance ------------- Evolutions (1) 500 Regions Visited (2) 400 Robots Destroyed (18) 90 Value Destroyed (383) 383 Prototype IDs (0) 0 Alien Tech Used (0) 0 Bonus (0) 0 TOTAL SCORE: 1373 Bonus ------- None Cogmind --------- Core Integrity 287/400 Matter 276/300 Energy 220/250 System Corruption 0% Temperature Warning (335) Movement Core (600) Ox11 Location -9/Materials Parts ------- > --- POWER (1) -------- Ion Engine > --- PROPULSION (3) --- (None) > --- UTILITY (3) ------ Heat Sink Large Storage Unit Medium Armor Plating > --- WEAPON (2) ------- Spread Laser > --- INVENTORY (15) --- Light Ion Engine Light Ion Engine Light Ion Engine Improved Hover Unit Improved Hover Unit Spread Laser Spread Laser Shotgun Shotgun Shotgun Shotgun Rocket Launcher Peak State ------------ > --- POWER ------------ Ion Engine > --- PROPULSION ------- Aluminum Leg Aluminum Leg Aluminum Leg > --- UTILITY ---------- Heat Sink Cooling System Large Storage Unit > --- WEAPON ----------- Spread Laser Shotgun > --- INVENTORY -------- Light Ion Engine Light Ion Engine Light Ion Engine Improved Hover Unit Improved Hover Unit Spread Laser Spread Laser Spread Laser Shotgun Shotgun Shotgun Rocket Launcher [Rating: 14] Favorites ----------- Power Ion Engine Engine Ion Engine Propulsion Aluminum Leg Leg Aluminum Leg Utility Large Storage Unit Device Heat Sink Storage Large Storage Unit Protection Medium Armor Plating Weapon Spread Laser Energy Gun Spread Laser Ballistic Gun Shotgun Build | -11 -10 -9 ------- Run | Yrd Mat Mat Slots Evolved 2 | . . 2 Power . | . . . Propulsion 1 | . . 1 Utility 1 | . . 1 Weapon . | . . . Parts Attached 15 | 6 6 3 Power 1 | 1 . . Engine 1 | 1 . . Core . | . . . Reactor . | . . . Propulsion 3 | 2 1 . Treads . | . . . Leg 3 | 2 1 . Wheel . | . . . Hover . | . . . Flight . | . . . Utility 5 | 1 2 2 Device 2 | . 1 1 Storage 2 | 1 1 . Processor . | . . . Hackware . | . . . Protection 1 | . . 1 Artifact . | . . . Weapon 6 | 2 3 1 Energy Gun 5 | 2 2 1 Energy Cannon . | . . . Ballistic Gun 1 | . 1 . Ballistic Cannon . | . . . Launcher . | . . . Special Weapon . | . . . Impact Weapon . | . . . Slashing Weapon . | . . . Piercing Weapon . | . . . Special Melee Weapon . | . . . Unidentified Prototypes . | . . . Parts Lost 4 | . . 4 Power . | . . . Propulsion 3 | . . 3 Utility . | . . . Weapon 1 | . . 1 Highest Loss Streak 4 | . . 4 To Critical Strikes . | . . . Average Backups 8 | 1 7 11 Power 1 | . 1 3 Propulsion . | . . 1 Utility . | . . . Weapon 5 | . 5 7 Tool/Special . | . . . Unused Backups 11 | . 2 9 Power 2 | . . 2 Propulsion 2 | . . 2 Utility . | . . . Weapon 7 | . 2 5 Tool/Special . | . . . Average Slot Usage (%) 90 | . 86 94 Engine 12 | . 14 11 Leg 29 | . 28 32 Device 7 | . 1 13 Storage 12 | . 14 11 Protection 2 | . . 4 Energy Gun 16 | . 17 16 Ballistic Gun 8 | . 10 5 Peak Build Rating 14 | 6 10 14 Average Rating 10 | 4 8 12 On Entrance 5 | . 6 10 Avg Prop Armor Cover (%) . | . . . Naked Turns . | . . . Heaviest Build 39 | 14 32 39 Greatest Support 30 | 20 20 30 Greatest Overweight (x) 3 | 3 1 1 Average Overweight (x) . | . . 1 Largest Inventory Capacity 15 | 8 15 15 Average Capacity 13 | 7 12 15 Most Carried 12 | 2 11 12 Average Carried 8 | 1 7 11 Final Capacity 15 | 8 15 15 Final Carried 12 | 2 11 12 Class Distribution -------------------- 100% | Mutant Dominant Class ---------------- Mutant | -10/Materials Mutant | -9/Materials Resources | -11 -10 -9 ----------- Run | Yrd Mat Mat Matter Collected 380 | 226 122 32 Remotely . | . . . Salvage Created 321 | . 215 106 Parts 33 | . 28 5 Haulers Intercepted 1 | . 1 . Recyclers Shooed 1 | . . 1 Parts Field Recycled . | . . . Retrieved Matter . | . . . Parts Self-Destructed . | . . . Prevented . | . . . Parts Restored . | . . . Kills | -11 -10 -9 ------- Run | Yrd Mat Mat Combat Hostiles Destroyed 14 | . 11 3 Guns 13 | . 10 3 AOE 1 | . 1 . Classes Destroyed 7 | . 6 1 Builder 1 | . 1 . Tunneler 1 | . 1 . Hauler 1 | . 1 . Watcher 1 | . 1 . Swarmer 9 | . 9 . Grunt 2 | . 2 . Sentry 3 | . . 3 Best Kill Streak 10 | . 10 2 Combat Bots Only 10 | . 10 2 Max Kills in Single Turn 5 | . 5 1 Gunslinging 1 | . 1 . Exploded 1 | . 1 . Melee . | . . . Uniques/NPCs Destroyed . | . . . Combat | -11 -10 -9 -------- Run | Yrd Mat Mat Hostile Shots Fired 102 | . 53 49 Missed 28 | . 14 14 Hits 74 | . 39 35 Melee 1 | . . 1 Projectile 73 | . 39 34 Critical Strikes 1 | . 1 . Damage Taken 885 | . 369 516 Core 171 | . 58 113 Absorbed by Shields . | . . . Core Remaining (%) 88 | 100 76 . Volleys Fired 32 | . 19 13 Largest 2 | . 2 2 Hottest 130 | . 88 130 Shots Fired 64 | . 38 26 Gun 64 | . 38 26 Cannon . | . . . Launcher . | . . . Special . | . . . Kinetic 16 | . 16 . Thermal 42 | . 16 26 Explosive . | . . . Electromagnetic 6 | . 6 . Robot Hit Streak 14 | . 4 14 Robot Miss Streak 5 | . 5 4 Penetration Max . | . . . Secondary Targets 4 | . 4 . Max Gunslinging Chain 1 | . 1 . Shots Hit Robots 57 | . 32 25 Core Hits 53 | . 24 29 Critical Kills . | . . . Critical Parts Destroyed 1 | . 1 . Critical Strikes 1 | . 1 . Destroy 1 | . 1 . Melee Attacks . | . . . Impact . | . . . Slashing . | . . . Piercing . | . . . Sneak Attacks . | . . . Combat Hostiles . | . . . Follow-up Attacks . | . . . Damage Inflicted 1138 | . 760 378 Guns 718 | . 340 378 Cannons . | . . . Explosions 420 | . 420 . Melee . | . . . Ramming . | . . . Kinetic 131 | . 131 . Thermal 935 | . 557 378 Explosive . | . . . Electromagnetic 72 | . 72 . Impact . | . . . Slashing . | . . . Piercing . | . . . Highest Corruption . | . . . Average Corruption . | . . . Corruption Purged . | . . . Corruption Blocked . | . . . Overload Shots . | . . . Overflow Damage 55 | . 55 . Projectiles . | . . . Explosions 55 | . 55 . Melee . | . . . Knockbacks . | . . . Impact . | . . . Kinetic . | . . . Secondary . | . . . Self-Inflicted Damage 39 | . 39 . Shots 1 | . 1 . Rammed . | . . . Targets Rammed . | . . . Kicked . | . . . Crushed . | . . . Highest Temperature 357 | . 357 335 Average Temperature 132 | . 137 122 Received Heat Transfer 183 | . 30 153 Effects 1 | . 1 . Damage (minor) 1 | . 1 . Siege Activations . | . . . Martial Activations . | . . . Shielding Activations . | . . . Robots Disrupted . | . . . Combat Hostiles . | . . . Robots Corrupted . | . . . Combat Hostiles . | . . . Parts Fried . | . . . Impact Corruptions . | . . . Robots Melted . | . . . Combat Hostiles . | . . . Parts Melted . | . . . Heat Transferred 1000 | . 520 480 Parts Sabotaged . | . . . Parts Stolen . | . . . Parts Stripped . | . . . Power Chain Reactions 1 | . 1 . Alert | -11 -10 -9 ------- Run | Yrd Mat Mat Maximum Alert Level 1 | . 1 . Low Security (%) 91 | 100 82 100 Level 1 8 | . 17 . Level 2 . | . . . Level 3 . | . . . Level 4 . | . . . Level 5 . | . . . High Security . | . . . Max Security . | . . . Peak Influence 274 | . 274 105 Initial 105 | . . 105 Average 67 | . 109 33 Influence Increases 513 | . 417 96 Destroy 0b10 Robot/C 280 | . 220 60 Destroy 0b10 Robot/NC 20 | . 20 . Destroy Leader 84 | . 54 30 Successful Hack 6 | . . 6 Disable Machine 90 | . 90 . Destroy Structure 33 | . 33 . Influence Decreases 509 | . 167 342 Entered New Map 145 | . . 145 Time Decay 324 | . 167 157 Lost Part 40 | . . 40 Squads Dispatched 2 | . 2 . Investigation 1 | . 1 . Extermination . | . . . Reinforcement 1 | . 1 . Assault . | . . . Garrison . | . . . Intercept . | . . . Searches Triggered . | . . . Construction Impeded . | . . . Haulers Reinforced . | . . . Active Scanning Responses . | . . . Cargo Convoy Interrupts . | . . . Stealth | -11 -10 -9 --------- Run | Yrd Mat Mat Distress Signals . | . . . Communications Jammed . | . . . Distress Signals . | . . . Times Spotted 23 | . 16 7 Peak Tracking Total 7 | . 7 5 Tactical Retreats . | . . . Traps | -11 -10 -9 ------- Run | Yrd Mat Mat Traps Triggered 1 | . 1 . Indirectly . | . . . Trap Hack Attempts . | . . . Triggered . | . . . Disarmed . | . . . Reprogrammed . | . . . Reused . | . . . Traps Extracted . | . . . Installed . | . . . Triggered . | . . . Machines | -11 -10 -9 ---------- Run | Yrd Mat Mat Machines Disabled 6 | . 6 . Max in Single Turn 6 | . 6 . Machines Repaired . | . . . Machines Dismantled . | . . . Machines Sabotaged . | . . . Overloaded Fab Kills . | . . . Hacking | -11 -10 -9 --------- Run | Yrd Mat Mat Machines Accessed 2 | . 1 1 Terminals 2 | . 1 1 Fabricators . | . . . Repair Stations . | . . . Recycling Units . | . . . Scanalyzers . | . . . Garrison Access . | . . . Total Hacks 6 | . 4 2 Successful 3 | . 2 1 Failed 3 | . 2 1 Catastrophic . | . . . Database Lockouts . | . . . Manual 6 | . 4 2 Terminals 6 | . 4 2 Fabricators . | . . . Repair Stations . | . . . Recycling Units . | . . . Scanalyzers . | . . . Garrison Access . | . . . Terminal Hacks 3 | . 2 1 Locate Traps 1 | . 1 . Zone Layout 2 | . 1 1 Fabricator Hacks . | . . . Repair Station Hacks . | . . . Recycling Unit Hacks . | . . . Scanalyzer . | . . . Garrison Access Hacks . | . . . Unauthorized Hacks . | . . . Terminals . | . . . Fabricators . | . . . Repair Stations . | . . . Recycling Units . | . . . Scanalyzers . | . . . Garrison Access . | . . . Data Cores Recovered . | . . . Used . | . . . Hacking Detections 2 | . 1 1 Full Trace Events . | . . . Feedback Events . | . . . Feedback Blocked . | . . . Robot Schematics Acquired . | . . . Robots Built . | . . . Authchips . | . . . Time . | . . . Total Robot Build Rating . | . . . Part Schematics Acquired . | . . . Parts Built . | . . . Authchips . | . . . Time . | . . . Total Part Build Rating . | . . . Part Studies Acquired . | . . . Parts Repaired . | . . . Time . | . . . Parts Recycled . | . . . Recycled Matter . | . . . Retrieved Matter . | . . . Retrieved Components . | . . . Parts Scanalyzed . | . . . Part Schematics Acquired . | . . . Parts Damaged . | . . . Bothacking | -11 -10 -9 ------------ Run | Yrd Mat Mat Used RIF Installer . | . . . Robots Hacked . | . . . Non-combat . | . . . Combat . | . . . Robot Hacks Applied . | . . . Relay Couplers Released . | . . . Fabnet Peak Effective % . | . . . Robots Rewired . | . . . Allies Hacked . | . . . Hacks Repelled . | . . . Allies | -11 -10 -9 -------- Run | Yrd Mat Mat Total Allies . | . . . Largest Group . | . . . Highest-Rated Group . | . . . Highest-Rated Ally . | . . . Total Orders . | . . . Ally Attacks . | . . . Total Damage . | . . . Kills . | . . . Allies Corrupted . | . . . Allies Melted . | . . . Intel | -11 -10 -9 ------- Run | Yrd Mat Mat Active Infowar (turns) . | . . . Robot Analysis Total . | . . . Derelict Logs Recovered . | . . . Drone Launches . | . . . Drone Recoveries . | . . . Exploration | -11 -10 -9 ------------- Run | Yrd Mat Mat Turns Passed 965 | 60 458 447 Spaces Moved 483 | 36 237 210 Core 7 | 7 . . Treads . | . . . Legs 476 | 29 237 210 Wheels . | . . . Hover . | . . . Flight . | . . . Fastest Speed 50 | 50 120 190 Average Speed 171 | 136 159 190 Slowest Speed 200 | 200 190 190 Overloaded Moves . | . . . Propulsion Burnouts . | . . . Robots Hopped . | . . . Potential Cave-ins . | . . . Cave-ins Triggered . | . . . Exploration Rate (%) 25 | 3 53 20 Regions Visited 2 Branch Regions . Pre-discovered Areas . | . . . Known Exits Taken . | . . . Unknown Exits Taken 2 | 1 1 . Scrap Searched . | . . . Spaces Dug . | . . . Terrain Destroyed 34 | . 34 . Melee . | . . . Projectile . | . . . AOE 34 | . 34 . Terrain Rammed . | . . . Walls Destroyed . | . . . Machines Disabled . | . . . Actions | -11 -10 -9 --------- Run | Yrd Mat Mat Total 553 | 43 279 231 Wait 4 | . 3 1 Move 481 | 35 236 210 Hop . | . . . Pick Up 14 | 2 10 2 Fast Attach 12 | 6 4 2 Attach 1 | . . 1 Detach . | . . . Swap 3 | . 2 1 Drop 6 | . 5 1 Fire 32 | . 19 13 Melee . | . . . Ram . | . . . Kick . | . . . Crush . | . . . Escape Stasis . | . . . Rewire . | . . . Trap . | . . . Miscellaneous . | . . . Route ------- -11/Scrapyard -10/Materials (discovered 3 exits: *Mat x3) -9/Materials History --------- Turn | Location | Event 37 | -11/Scrapyard | Discovered new exit (range 14) 61 | -11/Scrapyard | Entered Materials 97 | -10/Materials | Discovered new exit (range 15) 237 | -10/Materials | Discovered new exit (range 13) 316 | -10/Materials | Build established: Mutant 404 | -10/Materials | Discovered new exit (range 3) 479 | -10/Materials | Destroyed 10 combat bots 519 | -10/Materials | Entered another Materials area 519 | -9/Materials | Evolved 2 slots: Propulsion x1, Utility x1 966 | -9/Materials | Self-destructed Last Messages --------------- GOAL=ESCAPE 00538_ Connecting with Terminal... 00538_ Current location identified: Materials >>Layout(Zone) Retrieving Zone 2B layout... Downloaded map data. 00672_ Acquired Cooling System. 00714_ Acquired Imp. Hover Unit. 00769_ Y-45 Defender destroyed. 00781_ Acquired 32 matter. 00791_ Dropped Cooling System. 00792_ Acquired Med. Armor Plating. 00909_ R-06 Scavenger collects Cooling System. 00932_ Y-45 Defender destroyed. 00946_ Aluminum Leg destroyed. 00947_ R-06 Scavenger collects Imp. Ion Engine. 00949_ Aluminum Leg destroyed. 00950_ R-06 Scavenger collects Imp. Ion Engine. 00960_ Aluminum Leg destroyed. 00964_ Spread Laser destroyed. Map ----- +----------------------------------------------------+ | ?????????????????????????????????? | | ?????????????????????????????????? | | ?????????????????????????????????? | | ?????????????????????????????????? | | ?????????????????????????????????? | | ?????????????????????????????????? | | ?????????????????????????????????? | | ?????????????????????????????????? | | ?????????????????????????????????? | | ?????????????????????????????????? | | ?????????????????????????????????? | | ?????????????????????????????????? | | ?????????????????????????????????? | | ?????????????????????????????????? | | ?????????????????????????????????? | | ????????????##???????????????????? | | ??????????? ????????????????????? | | ??????????? ????????????????????? | | ??????????? ????????????????????? | | ??????????? ?????????????????????? | | ?????????? ?????????????????????? | | ?????????? #?????????????????????? | | ?????????? #?????????????????????? | | ???????### ###???????????????????? | | ???????# % ##### ?????????? | | ????####l@ g r????????? | | ????# !% Y ????????? | | ????# ## ????????? | | ????# ## ##### ?????????? | | ???##+############??? ?????????? | | ???# #???????????????? | | ???# #???????????????? | | ???# #???????????????? | | ???# #???????????????? | | ???# #???????????????? | | ???# #???????????????? | | ???#########+#####???????????????? | | ?????????#! #?????????????????? | | ???####### #?????????????????? | | ???# +?????????????????? | | ???# ##### #?????????????????? | | ???# #???# = #?????????????????? | | ???# #???### ###?????????????????? | | ???# #?????#!#???????????????????? | | ???# #?????# #???????????????????? | | ???# #?????# #???????????????????? | | ???# #?????# #??###########??????? | | ???# #?????# #??# #??????? | | ???# #?????# #??# #??????? | | ??##+####### #??#! ! #??????? | +----------------------------------------------------+ Best States ------------- Heat Dissipation 60 Energy Generation 10 Energy Capacity 250 Matter Stores 266 Matter Capacity 300 Sight Range 16 Terrain Scan Density 10 Armor Coverage 225 Evasion (%) 55 Item Schematics ----------------- None Robot Schematics ------------------ None Fabricated ------------ Nothing Repaired ---------- Nothing Studied --------- None Alien Tech Used ----------------- None Achievements -------------- None Challenges ------------ None Game ------ Seed ExplosiveFieldDrillbomb Manual? 0 Play Time 00:09:02 Cumulative 91.4 hours Start 2026.02.18 @ 16:26:49 End 2026.02.18 @ 16:37:30 Sessions 1 Manual Loads 0 Difficulty Rogue Special Mode None Game No. 186 Rogue 186 Adventurer 0 Explorer 0 Win Type - Total 1 Types 1/0/0/0/0/0/0/0/0/0 Lore% 26 Gallery% 36 Achievement% 26 Wizard Run 0 Options --------- Layout 1 ASCII 0 Keyboard 0 Movement Mouse Keybinds 0 Fullscreen 2 Font 20/X11 Map View 50x35 Zoom Use 0% Tactical HUD 1 Map Filters NONE Filters NONE Steam 1 RUN: 19239f5d-cbaf-456c-976e-27cebc778efb